[Event "Bangabandhu Premier Div League 2022"]
[Site "Dhaka"]
[Date "2022.12.05"]
[Round "6.8"]
[White "Jabed Al Azad"]
[Black "Swarnavo Choudhury"]
[Result "1/2-1/2"]
[ECO "B45"]
[WhiteElo "2084"]
[BlackElo "1977"]
[Annotator "TA"]
[PlyCount "69"]
[EventDate "2022.12.01"]
[EventCountry "BAN"]
[SourceTitle "playchess.com"]
[Source "ChessBase"]
[SourceQuality "1"]
[TimeControl "40/5400+30:1800+30"]

{[%evp 20,69,-13,-32,51,-11,-22,-10,-12,-98,-74,-104,-105,-105,-59,-64,-52,-60,61,57,56,58,88,91,93,59,95,96,103,-37,-39,-100,-109,-106,-79,-191,-168,-132,-23,-183,-187,-149,-73,-65,-31,-45,-52,-39,-54,-44,-26,-26]} 1. e4 {[%emt 0:02:57]} c5 {[%emt 0:02:45]} 2. Nf3 {[%emt 0:00:02]} e6 {[%emt 0:00:40]} 3. d4 {[%emt 0:00:04]} cxd4 {[%emt 0:00:13]} 4. Nxd4 {[%emt 0:00:04]} Nc6 {[%emt 0:00:06]} 5. Be3 {[%emt 0:00:29]} Nf6 {[%emt 0:02:12]} 6. Nc3 {[%emt 0:00:07]} Bb4 {[%emt 0:06:31]} 7. Bd3 {[%emt 1:30:17]} d5 {[%emt 0:07:21]} 8. Nxc6 {[%emt 0:00:00]} bxc6 {[%emt 0:01:19]} 9. e5 {[%emt 0:01:00]} Nd7 {[%emt 0:21:29]} 10. Qg4 {[%emt 0:00:00]} Bf8 {[%emt 0:12:08]} 11. f4 {[%emt 0:01:00]} c5 {[%emt 0:01:36] B45: Sicilian Four Knights.} ({Better is} 11... Rb8 $15) 12. Bd2 {[%emt 0:00:00] [#]} (12. O-O $1 $14) 12... c4 $146 {[%emt 0:02:15]} ({Predecessor:} 12... Rb8 13. b3 a6 14. O-O g6 15. Rae1 Bb7 16. Kh1 Qc7 17. f5 gxf5 18. Bxf5 Nxe5 19. Rxe5 Qxe5 20. Re1 Qg7 21. Bxe6 Qxg4 22. Bxg4+ Kd8 23. Nxd5 Bxd5 24. Ba5+ {1-0 (24) Khodjabagyan,S (2029)-Roedel,E (1906) Berlin 2010}) 13. Be2 {[%emt 0:01:00]} Rb8 {[%emt 0:04:07] The position is equal.} 14. Na4 {[%emt 0:00:30]} (14. b3 $1 $11 {keeps the balance.}) 14... Bb7 $17 {[%emt 0:03:50]} 15. b3 {[%emt 0:00:00]} Bc6 {[%emt 0:04:10]} 16. Nb2 {[%emt 0:00:00]} g6 {[%emt 0:01:50]} (16... h5 $17 17. Qh3 Qb6) 17. Qg3 {[%emt 0:00:00]} Nc5 {[%emt 0:06:40]} 18. Bf3 {[%emt 0:02:00]} a5 {[%emt 0:10:52]} (18... Bb5 $15) 19. Nxc4 $14 {[%emt 0:00:00]} a4 {[%emt 0:02:05]} 20. Ne3 {[%emt 0:00:00]} Ne4 {[%emt 0:02:26]} 21. Bxe4 {[%emt 0:00:00]} dxe4 {[%emt 0:06:25]} 22. Bc3 {[%emt 0:00:00]} h5 {[%emt 0:00:30]} 23. Rd1 {[%emt 0:00:00] Against h4} Qc7 {[%emt 0:00:00]} 24. O-O {[%emt 0:03:00] White is more active.} (24. Nc4 $16 Bc5 25. Bd4 Bxd4 26. Nd6+ (26. Rxd4 O-O $16) 26... Kf8 27. Rxd4) 24... Bb5 $36 {[%emt 0:00:00][%csl LRc3,LRf1][%mdl 2048] Black is more active.} 25. Nc4 {[%emt 0:00:00]} (25. Qe1 $15) 25... Bxc4 $17 {[%emt 0:00:00]} 26. bxc4 {[%emt 0:00:00]} Qxc4 {[%emt 0:00:00] aiming for ...Bc5+.} 27. Qe3 {[%emt 0:00:00]} (27. Bd4 $17) 27... Be7 $19 {[%emt 0:01:10]} 28. Rd4 {[%emt 0:02:00] [#]} Qc5 {[%emt 0:01:04]} ({Weaker is} 28... Qxa2 29. Qxe4 O-O 30. Rxa4 Bc5+ 31. Kh1 $15) ({Resist} 28... Bc5 29. Rxc4 Bxe3+ 30. Kh1 $11) (28... Qc6 $1 $17 {And now ...Bc5 would win.} 29. Rxe4 (29. Qxe4 $2 Qxc3 30. Rc4 Qb2 $19) 29... O-O) 29. Kh1 $2 {[%emt 0:00:00]} (29. Rxe4 $2 {is the wrong capture.} Qxe3+ 30. Rxe3 Bc5 $19) (29. a3 $1 $11 {and White has nothing to worry.}) 29... O-O {[%emt 0:00:23]} 30. Rxe4 {[%emt 0:00:00] [#]} Qc6 {[%emt 0:00:22]} ({Black should try} 30... Qa3 $1 {Threatens to win with ...Rfc8.} 31. Ra1 Rfc8) 31. Qd3 $17 {[%emt 0:00:00]} Rbc8 {[%emt 0:01:31]} (31... Rfc8 $5 {[%cal Rc6c3]} 32. Re3 Bb4 33. Bxb4 Rxb4 $15) 32. Bb4 {[%emt 0:00:00]} Rfd8 {[%emt 0:00:00]} 33. Qe2 {[%emt 0:00:00]} Bxb4 {[%emt 0:00:21]} 34. Rxb4 {[%emt 0:00:00]} Qxc2 {[%emt 0:00:23]} (34... Kg7 $5 {[%cal Rc6c3]}) 35. Qxc2 {[%emt 0:00:00] Weighted Error Value: White=0.39/Black=0.29 (precise)} 1/2-1/2

[Event "Bangabandhu Premier Div League 2022"]
[Site "Dhaka"]
[Date "2022.12.05"]
[Round "6.9"]
[White "Hossain, Enamul"]
[Black "Abu Sufian, Shakil"]
[Result "1/2-1/2"]
[ECO "C54"]
[WhiteElo "2392"]
[BlackElo "2229"]
[Annotator "TA"]
[PlyCount "86"]
[EventDate "2022.11.30"]
[EventType "team-tourn"]
[EventCountry "BAN"]
[SourceTitle "playchess.com"]
[Source "ChessBase"]
[SourceQuality "1"]
[TimeControl "40/5400+30:1800+30"]

{[%evp 13,86,12,27,26,28,31,27,10,39,6,30,25,46,10,122,118,108,39,98,91,91,106,95,110,106,93,88,49,106,107,137,111,131,123,141,98,73,45,152,147,158,151,120,148,260,245,251,253,256,252,585,365,364,364,364,274,274,35,33,0,0,0,0,0,0,0,0,0,0,0,0,0,0,0,0]} 1. e4 {[%emt 0:00:04]} e5 {[%emt 0:00:07]} 2. Nf3 {[%emt 0:00:41]} Nc6 {[%emt 0:00:04]} 3. Bc4 {[%emt 0:01:29]} Nf6 {[%emt 0:00:31]} 4. d3 {[%emt 0:00:15]} Bc5 {[%emt 0:00:29]} 5. c3 {[%emt 0:00:39]} d6 {[%emt 0:00:51]} 6. a4 {[%emt 0:01:32]} a5 {[%emt 0:01:02]} 7. O-O {[%emt 0:02:32]} O-O {[%emt 0:01:33]} 8. Bg5 {[%emt 0:04:29] 8.Bg5 has become a bit dusty these days. C54: Giuoco Piano: 4 c3 Nf6, main lines with 5 d4 and 5 d3.} h6 {[%emt 0:00:44]} 9. Bh4 {[%emt 0:00:06]} g5 {[%emt 0:16:30]} 10. Bg3 {[%emt 0:00:10] White has an edge.} Bb6 {[%emt 0:03:53]} 11. Re1 {[%emt 0:02:12] [#]} Ne7 $146 {[%emt 0:06:41]} (11... g4 {is interesting.} 12. Bh4 gxf3 13. Qxf3 Kg7) ({Predecessor:} 11... Bg4 12. Nbd2 Kg7 13. Nf1 Be6 14. Bb5 Ne7 15. d4 exd4 16. Nxd4 c6 17. Bd3 Bg4 {1-0 (28) Mehmed,E (2278)-Parvanova,D (1902) Sofia 2020}) 12. d4 {[%emt 0:03:05]} exd4 {[%emt 0:01:06]} 13. cxd4 {[%emt 0:10:38]} d5 {[%emt 0:00:43]} (13... Nc6 $11 {remains equal.}) 14. exd5 $16 {[%emt 0:02:53]} Nexd5 {[%emt 0:05:24]} 15. Qd3 {[%emt 0:02:09]} (15. h4 $16) 15... c6 {[%emt 0:04:25]} (15... Nh5 $14) 16. Nc3 {[%emt 1:05:36]} Bc7 {[%emt 0:05:10]} 17. Bxd5 {[%emt 0:00:00]} Nxd5 {[%emt 0:02:10]} 18. Nxd5 {[%emt 0:00:00]} cxd5 {[%emt 0:00:24]} 19. Bxc7 {[%emt 0:00:00]} Qxc7 {[%emt 0:00:04]} 20. Rac1 {[%emt 0:00:00]} Qd6 {[%emt 0:00:54]} (20... Qf4 $14) 21. h4 $40 {[%emt 0:00:00][%mdl 128] White attacks with force.} g4 {[%emt 0:03:05]} 22. Ne5 {[%emt 0:00:00]} Be6 {[%emt 0:00:46]} 23. Qd1 {[%emt 0:00:00]} Rfc8 {[%emt 0:03:49]} 24. Rc3 {[%emt 0:00:00]} Rxc3 {[%emt 0:09:40]} 25. bxc3 {[%emt 0:00:00]} Qd8 {[%emt 0:01:43]} (25... Rc8 $1 $14) 26. g3 {[%emt 0:00:00]} Qc8 {[%emt 0:03:04]} 27. Qd2 {[%emt 0:00:00]} Kg7 {[%emt 0:00:32]} 28. c4 {[%emt 0:00:00] White has more active pieces.} f6 {[%emt 0:06:17]} (28... Ra6 $16 {is a better defense.}) 29. Nd3 $18 {[%emt 0:00:00]} (29. cxd5 Bxd5 30. Qf4 h5 $18) 29... dxc4 {[%emt 0:03:03]} 30. Nc5 {[%emt 0:00:00]} (30. Nf4 $6 Bf7 $16) 30... Bf7 {[%emt 0:02:09][%cal Oc4c3]} 31. Re7 {[%emt 0:00:00] Inhibits c3.} b6 $2 {[%emt 0:02:26] [#]} (31... Qf5 {is more resistant.} 32. Ne6+ (32. Nxb7 Qb1+ 33. Kh2 Ra7 $11) (32. Rxb7 Kg8 $17) 32... Qxe6 33. Rxe6 Bxe6) 32. Ne6+ {[%emt 0:00:00]} Qxe6 {[%emt 0:00:11]} 33. Rxe6 {[%emt 0:00:00]} Bxe6 {[%emt 0:00:04][%mdl 4096] Endgame KQ-KRB} 34. d5 {[%emt 0:00:00]} Rd8 {[%emt 0:02:26]} 35. Qe3 $2 {[%emt 0:00:00]} (35. Qe2 $18 Bf7 36. Qxg4+ (36. Qxc4 h5 $11) 36... Kf8 37. Qxc4) 35... Bf7 $14 {[%emt 0:00:20]} 36. Qxb6 {[%emt 0:00:00]} (36. Qd4 $5 {[%cal Rd4g4]} Rxd5 37. Qxg4+ (37. Qxb6 Rd1+ 38. Kg2 Bd5+ 39. f3 gxf3+ 40. Kf2 Rd2+ 41. Kf1 Rd1+ 42. Kf2 Rd2+ 43. Kf1 Rd1+ 44. Kf2 $11) 37... Kh7 38. Qf4 $11 (38. Qxc4 $2 {too greedy.} Rd1+ $19) (38. Qe4+ Kg7 $11)) 36... Rxd5 {[%emt 0:00:12] The position is equal.} 37. Kf1 {[%emt 0:00:00]} Re5 {[%emt 0:03:25]} 38. Qc7 {[%emt 0:00:00]} h5 {[%emt 0:00:12]} 39. f3 {[%emt 0:00:00]} gxf3 {[%emt 0:00:50]} 40. Kf2 {[%emt 0:00:00]} Rf5 {[%emt 0:01:11]} 41. Qc6 {[%emt 0:29:47]} Re5 {[%emt 0:40:36]} 42. Qxf3 {[%emt 0:01:40]} Be6 {[%emt 0:00:23] [#] ( -> ...Rf5)} 43. Qc6 {[%emt 0:01:01]} Kg6 {[%emt 0:00:00] Blacks defense is rewarded with a draw.   Weighted Error Value: White=0.25 (precise) /Black=0.38} 1/2-1/2

[Event "Bangabandhu Premier Div League 2022"]
[Site "Dhaka"]
[Date "2022.12.05"]
[Round "6.10"]
[White "Nayem, Haque"]
[Black "Mohammad Fahad, Rahman"]
[Result "0-1"]
[ECO "B12"]
[WhiteElo "2189"]
[BlackElo "2380"]
[Annotator "TA"]
[PlyCount "64"]
[EventDate "2022.11.30"]
[EventType "team-tourn"]
[EventCountry "BAN"]
[SourceTitle "playchess.com"]
[Source "ChessBase"]
[SourceQuality "1"]
[TimeControl "40/5400+30:1800+30"]

{[%evp 9,64,18,17,22,18,4,34,-70,-62,-59,-16,-16,-19,-8,-28,-152,-154,-153,-164,-156,-102,-130,-131,-139,-142,-141,-126,-134,-147,-141,-130,-120,-105,-185,-178,-185,-166,-160,-190,-158,-117,-146,-139,-862,-895,-820,-786,-1116,-1116,-1075,-614,-29984,-29985,-29985,-29986,-29991,-1358]} 1. e4 {[%emt 0:00:06]} c6 {[%emt 0:00:22]} 2. d4 {[%emt 0:00:04]} d5 {[%emt 0:00:07]} 3. e5 {[%emt 0:00:13]} c5 {[%emt 0:00:10]} 4. dxc5 {[%emt 0:00:05]} e6 {[%emt 0:00:07]} 5. Nf3 {[%emt 0:01:00]} Bxc5 {[%emt 0:00:12]} 6. Bd3 {[%emt 0:00:09] B12: Caro-Kann: Advance Variation.} Nc6 {[%emt 0:00:59] 6...Nc6 has lost popularity.} 7. a3 {[%emt 0:00:07]} f6 {[%emt 0:00:47][%cal Bf7f6,Bf6e5][%mdl 32] [#]} 8. O-O $146 {[%emt 0:04:39]} (8. b4 $14 Bb6 9. O-O) ({Predecessor:} 8. b4 Be7 9. Bb2 Nh6 10. O-O Nf7 11. exf6 Bxf6 12. Bxf6 Qxf6 13. Nbd2 O-O 14. c4 {½-½ (48) Bartel,M (2616)-Fridman,D (2628) Germany 2022}) 8... fxe5 $15 {[%emt 0:20:42]} ({Much less strong is} 8... Nxe5 9. Nxe5 fxe5 10. Qh5+ Kf8 11. Qxe5 $14) 9. b4 $1 {[%emt 0:00:16] Inhibits e4.} Bd6 {[%emt 0:00:36]} (9... e4 {seems wilder.} 10. bxc5 Qf6 11. Bd2 exf3 12. Qxf3 Qxf3 13. gxf3 Nge7) 10. b5 $1 {[%emt 0:00:02] Against e4} e4 $36 {[%emt 0:05:49][%mdl 2048] And now ...Nce7 would win. Black has the initiative.} 11. bxc6 {[%emt 0:00:47]} bxc6 {[%emt 0:00:02]} 12. Bb2 {[%emt 0:01:01]} exf3 $17 {[%emt 0:03:13]} 13. Qxf3 {[%emt 0:16:41]} Nf6 {[%emt 0:00:20]} 14. Qe2 {[%emt 0:01:05] [#]} O-O {[%emt 0:01:54]} ({Black should try} 14... Qc7 $1 {aiming for ...0-0.} 15. Bxf6 gxf6 16. Qh5+ Qf7) 15. Nd2 {[%emt 0:00:03]} c5 {[%emt 0:13:17] Hoping for ...c4.} 16. c4 {[%emt 1:12:12]} Qc7 {[%emt 0:03:27]} 17. h3 {[%emt 0:00:00]} d4 {[%emt 0:02:18]} 18. Ne4 {[%emt 0:00:00]} Bb7 {[%emt 0:08:06]} 19. Nxd6 {[%emt 0:00:00]} Qxd6 {[%emt 0:00:07]} 20. f4 {[%emt 0:00:00] Prevents e5.} g6 {[%emt 0:00:59] ...Nh5 is the strong threat.} 21. Rae1 {[%emt 0:00:00]} (21. Bc1 $17 {was called for.}) 21... Nh5 $19 {[%emt 0:01:17]} 22. Bc1 {[%emt 0:00:00]} Ng3 {[%emt 0:12:13]} ({Stronger than} 22... Nxf4 23. Bxf4 Rxf4 24. Rxf4 Qxf4 25. Rb1 $11) 23. Qg4 {[%emt 0:00:00]} Nxf1 {[%emt 0:00:16]} 24. Bxg6 {[%emt 0:00:00]} Ne3 {[%emt 0:00:07]} 25. Rxe3 {[%emt 0:00:00]} dxe3 {[%emt 0:06:22]} 26. Bh5+ $2 {[%emt 0:00:00][%mdl 8192] This pair of bishops is nice. This move loses the game for White.} (26. Be4+ $17 Kf7 27. Qh5+ Ke7 28. Bxe3 Bxe4 29. Bxc5) 26... Kh8 {[%emt 0:00:15]} 27. Bb2+ {[%emt 0:00:00]} e5 $1 {[%emt 0:00:13] White must now prevent ...Rg8.} (27... Qd4 $2 28. Bxd4+ cxd4 29. Qxe6 $18) 28. Bxe5+ {[%emt 0:00:00] [#]} Qxe5 $3 {[%emt 0:00:06][%mdl 512]} 29. fxe5 {[%emt 0:00:00]} Rg8 {[%emt 0:01:00]} 30. Qd7 {[%emt 0:00:00]} Rxg2+ {[%emt 0:00:16] Black mates.} 31. Kf1 {[%emt 0:00:00]} Rf8+ {[%emt 0:00:06]} 32. Bf7 {[%emt 0:00:00]} Rxf7+ {[%emt 0:00:38] Weighted Error Value: White=0.53/Black=0.40} 0-1

[Event "Bangabandhu Premier Div League 2022"]
[Site "Dhaka"]
[Date "2022.12.05"]
[Round "6.11"]
[White "Narayanan.S.L"]
[Black "Ghosh, Diptayan"]
[Result "1/2-1/2"]
[ECO "D37"]
[WhiteElo "2673"]
[BlackElo "2544"]
[Annotator "TA"]
[PlyCount "66"]
[EventDate "2022.11.30"]
[EventType "team-tourn"]
[EventCountry "BAN"]
[SourceTitle "playchess.com"]
[Source "ChessBase"]
[SourceQuality "1"]
[TimeControl "40/5400+30:1800+30"]

{[%evp 9,66,26,37,29,34,22,29,31,36,35,27,27,33,29,36,30,28,19,28,0,22,0,0,0,4,8,22,36,32,14,0,0,29,0,0,0,0,0,27,0,0,0,0,0,0,8,10,10,11,11,11,11,11,11,18,18,22,0,0]} 1. d4 {[%emt 0:00:03]} Nf6 {[%emt 0:00:25]} 2. c4 {[%emt 0:00:07]} e6 {[%emt 0:00:06]} 3. Nf3 {[%emt 0:00:23]} d5 {[%emt 0:00:07]} 4. Nc3 {[%emt 0:00:05]} h6 {[%emt 0:01:01]} 5. Bf4 {[%emt 0:00:15]} Bd6 {[%emt 0:00:06]} 6. Bxd6 {[%emt 0:00:04] D37: Queen's Gambit Declined: 5 Bf4.} Qxd6 $1 {[%emt 0:00:04] 6...Qxd6 scores better than 6...cxd6.} 7. e3 {[%emt 0:00:07]} O-O {[%emt 0:00:05]} 8. c5 {[%emt 0:00:10] White has an edge.} Qe7 {[%emt 0:00:17]} 9. b4 {[%emt 0:00:23]} a6 {[%emt 0:00:20]} 10. Be2 {[%emt 0:00:15]} Nbd7 {[%emt 0:08:40]} 11. O-O {[%emt 0:02:11]} c6 {[%emt 0:00:11]} 12. a4 {[%emt 0:00:06]} e5 {[%emt 0:01:07] [#]} 13. b5 $146 {[%emt 0:06:55]} ({Predecessor:} 13. Qc2 e4 14. Nd2 Nh7 15. b5 Qh4 16. bxc6 bxc6 17. f3 exf3 18. Nxf3 Qd8 19. e4 dxe4 20. Nxe4 {½-½ (60) Beydullayeva,G (2390)-Basso,P (2561) Novi Sad 2022}) 13... exd4 {[%emt 0:06:15]} 14. exd4 {[%emt 1:26:26]} Ne4 {[%emt 0:01:14]} 15. Na2 {[%emt 0:00:00]} axb5 {[%emt 0:14:05]} 16. axb5 {[%emt 0:00:00]} Qf6 {[%emt 0:00:15][%cal Od7c5]} 17. Bd3 {[%emt 0:01:30]} (17. Nb4 {seems wilder.} Nc3 18. Qc2 Nxe2+ 19. Qxe2 Rxa1 20. Rxa1 Nxc5 21. bxc6 bxc6 22. Qc2) 17... Ng5 {[%emt 0:14:26]} (17... Ndxc5 {feels hotter.} 18. dxc5 Bg4 19. h3 Bh5) 18. Nxg5 {[%emt 0:00:00]} hxg5 {[%emt 0:00:09]} 19. Nb4 {[%emt 0:00:00]} ({Don't go for} 19. Qh5 $2 g6 20. Qe2 Qxd4 $19) 19... Rxa1 {[%emt 0:00:25]} 20. Qxa1 {[%emt 0:00:00]} g6 {[%emt 0:01:48]} 21. Rd1 {[%emt 0:00:00]} Kg7 $1 {[%emt 0:07:09]} 22. Bf1 {[%emt 0:00:00]} Rh8 {[%emt 0:01:28]} 23. Qc3 {[%emt 0:00:00]} Rh4 {[%emt 0:10:57]} ({Don't take} 23... Qf4 24. Qg3 $16 (24. bxc6 $2 Qxh2#)) 24. f3 {[%emt 0:00:00]} Nf8 {[%emt 0:02:18] The position is equal.} 25. g3 {[%emt 0:00:00]} Rh8 {[%emt 0:00:07]} 26. Qe3 {[%emt 0:00:00]} Bd7 {[%emt 0:05:54]} 27. bxc6 {[%emt 0:00:00]} bxc6 {[%emt 0:00:23]} 28. Nd3 $36 {[%emt 0:00:00][%mdl 2048] Black is under pressure.} g4 {[%emt 0:04:36]} 29. f4 {[%emt 0:00:00]} Bf5 {[%emt 0:00:34]} 30. Be2 {[%emt 0:00:00]} Bxd3 {[%emt 0:03:10]} 31. Rxd3 {[%emt 0:00:00]} Qf5 {[%emt 0:00:14]} 32. Qe5+ {[%emt 0:00:00]} Kh7 $1 {[%emt 0:00:45]} 33. Qe7 {[%emt 0:00:00]} Ne6 {[%emt 0:02:42] Weighted Error Value: White=0.06 (flawless) /Black=0.04 (flawless)} 1/2-1/2

[Event "Bangabandhu Premier Div League 2022"]
[Site "Dhaka"]
[Date "2022.12.05"]
[Round "6.12"]
[White "Mitrabha, Guha"]
[Black "Idani, Pouya"]
[Result "1/2-1/2"]
[ECO "E11"]
[WhiteElo "2474"]
[BlackElo "2631"]
[Annotator "TA"]
[PlyCount "67"]
[EventDate "2022.11.30"]
[EventType "team-tourn"]
[EventCountry "BAN"]
[SourceTitle "playchess.com"]
[Source "ChessBase"]
[SourceQuality "1"]
[TimeControl "40/5400+30:1800+30"]

{[%evp 10,67,15,12,42,27,37,13,12,4,13,0,0,0,1,0,21,27,27,3,15,2,31,14,10,4,24,-26,0,0,0,0,0,0,0,0,23,18,35,42,53,39,52,45,67,58,79,77,69,68,87,86,141,47,83,0,151,0,64,0]} 1. d4 {[%emt 0:00:32]} Nf6 {[%emt 0:00:06]} 2. c4 {[%emt 0:00:32]} e6 {[%emt 0:00:08]} 3. Nf3 {[%emt 0:00:19]} Bb4+ {[%emt 0:01:13]} 4. Nbd2 {[%emt 0:00:10]} O-O {[%emt 0:00:10]} 5. a3 {[%emt 0:00:10]} Be7 {[%emt 0:00:04]} 6. e4 {[%emt 0:00:22]} d6 {[%emt 0:00:06][%cal Oe6e5] E11: Bogo-Indian.} (6... d5 $5 {[%cal Rd5e4]}) 7. Qc2 {[%emt 0:00:46]} e5 {[%emt 0:00:05]} 8. Be2 {[%emt 0:06:39]} exd4 {[%emt 0:02:42] The position is equal.} 9. Nxd4 {[%emt 0:00:27]} Nfd7 {[%emt 0:00:04]} 10. b3 {[%emt 0:09:00]} Bf6 {[%emt 0:02:48]} 11. Bb2 {[%emt 0:00:03] [#]} Nc5 $146 {[%emt 0:05:23]} ({Predecessor:} 11... Ne5 12. O-O Nbc6 13. Nf5 Ng6 14. g3 Re8 15. Rfe1 Nf8 16. Rad1 Bxb2 17. Qxb2 Bxf5 18. exf5 {½-½ (23) Swiercz,D (2665)-Gareyev,T (2565) San Salvador 2022}) 12. O-O {[%emt 0:13:21]} Nc6 {[%emt 0:01:03]} 13. Nxc6 {[%emt 0:04:50]} bxc6 {[%emt 0:00:10]} 14. Rfe1 {[%emt 0:00:25]} Rb8 {[%emt 1:23:28]} 15. Bf1 {[%emt 0:03:43]} Ne6 {[%emt 0:00:00]} 16. Nf3 {[%emt 0:02:36]} Bxb2 {[%emt 0:00:00]} 17. Qxb2 {[%emt 0:00:03]} c5 {[%emt 0:00:00]} 18. Qc3 {[%emt 0:05:25]} (18. b4 $142) 18... Qf6 {[%emt 0:00:00]} 19. Qxf6 {[%emt 0:03:16]} gxf6 {[%emt 0:00:00]} 20. b4 {[%emt 0:00:11]} cxb4 {[%emt 0:00:00]} 21. axb4 {[%emt 0:00:04]} Rxb4 {[%emt 0:00:00]} 22. Rxa7 {[%emt 0:00:07]} Bb7 {[%emt 0:00:00]} 23. Nh4 {[%emt 0:01:28]} Ng7 {[%emt 0:00:00]} 24. f3 {[%emt 0:00:43]} Re8 {[%emt 0:00:00][%cal Of6f5]} 25. Rc1 {[%emt 0:00:32] Prevents f5.} Ne6 {[%emt 0:00:00]} 26. Nf5 {[%emt 0:00:16]} Nc5 {[%emt 0:00:00]} 27. h4 {[%emt 0:01:24]} Kf8 {[%emt 0:00:00]} 28. Rca1 {[%emt 0:01:23]} Rb8 {[%emt 0:00:00]} 29. Kf2 {[%emt 0:03:16] White is more active.} Rb2+ {[%emt 0:00:00]} 30. Kg3 {[%emt 0:00:22]} Ke8 {[%emt 0:00:00] [#]} (30... Re8 $142) 31. R1a2 {[%emt 0:02:53]} (31. Kg4 $1 $16) 31... Rb1 {[%emt 0:00:00]} 32. Ra1 {[%emt 0:00:13]} (32. Ne3 $142) 32... Rb2 $1 $16 {[%emt 0:00:00] [#]} 33. R1a2 {[%emt 0:00:07]} (33. Kg4 $1 $16) 33... Rb1 $1 $14 {[%emt 0:00:00]} 34. Ra1 {[%emt 0:00:49] Weighted Error Value: White=0.23 (precise) /Black=0.12 (very precise)} (34. Kf2 $14) 1/2-1/2

[Event "Bangabandhu Premier Div League 2022"]
[Site "Dhaka"]
[Date "2022.12.06"]
[Round "7.1"]
[White "Mohammad, Shameem"]
[Black "Majumder, Ahmed Hossain"]
[Result "1/2-1/2"]
[ECO "A58"]
[WhiteElo "1892"]
[BlackElo "1975"]
[Annotator "TA"]
[PlyCount "48"]
[EventDate "2022.12.01"]
[EventCountry "BAN"]
[SourceTitle "playchess.com"]
[Source "ChessBase"]
[SourceQuality "1"]
[TimeControl "40/5400+30:1800+30"]

{[%evp 23,48,19,10,-8,-9,-16,22,14,29,18,31,29,46,42,75,82,84,24,34,35,58,38,38,0,50,0,24]} 1. d4 {[%emt 1:31:00]} Nf6 {[%emt 0:04:06]} 2. c4 {[%emt 0:00:30]} c5 {[%emt 1:27:24]} 3. d5 {[%emt 0:00:00]} b5 {[%emt 0:00:30]} 4. cxb5 {[%emt 0:01:00]} a6 {[%emt 0:00:30]} 5. bxa6 {[%emt 0:00:00]} Bxa6 {[%emt 0:00:00]} 6. Nc3 {[%emt 0:00:00]} d6 {[%emt 0:01:00]} 7. g3 {[%emt 0:00:00]} g6 {[%emt 0:00:30]} 8. Bg2 {[%emt 0:02:00]} Bg7 {[%emt 0:00:00]} 9. Nf3 {[%emt 0:00:30]} O-O {[%emt 0:00:00]} 10. O-O {[%emt 0:00:30]} Nbd7 {[%emt 0:00:00]} 11. Re1 {[%emt 0:00:30]} Ng4 {[%emt 0:02:00]} 12. h3 {[%emt 0:00:30]} Nge5 {[%emt 0:00:30]} 13. Nxe5 {[%emt 0:00:30] A58: Benko/Volga Gambit: Lines with 5 bxa6.} Nxe5 {[%emt 0:00:30]} 14. Qc2 {[%emt 0:00:30]} Qb6 {[%emt 0:00:30][%mdl 1024] Black has compensation.} 15. b3 {[%emt 0:00:30] Prevents Nc4.} Rfb8 {[%emt 0:00:30] [#]} (15... c4 $5 {[%cal Rc4b3]}) 16. Na4 $146 {[%emt 0:00:30]} ({Predecessor:} 16. Rb1 Qa5 17. Bd2 c4 18. b4 Qa3 19. b5 Bc8 20. Kh2 Bf5 21. Be4 {½-½ (21) Rickert,D (1939)-Strohmann,A (1858) Ruhrgebiet 2003}) 16... Qa7 {[%emt 0:00:30][%cal Oe5d3]} 17. Be3 {[%emt 0:00:30]} Bb5 {[%emt 0:00:00][%cal Rb5a4]} 18. Nc3 {[%emt 0:00:00]} Qa5 {[%emt 0:00:00][%cal Oa5c3] [#] And now ...Qxc3! would win.} 19. Nxb5 {[%emt 0:00:00]} Qxb5 {[%emt 0:01:30]} 20. Rab1 {[%emt 0:01:30]} (20. Reb1 $16) 20... Ra3 $11 {[%emt 0:00:00]} 21. Bc1 {[%emt 0:00:00]} Ra7 {[%emt 0:01:00]} 22. Bd2 {[%emt 0:01:00]} Ra3 $1 {[%emt 0:00:30]} 23. Bc1 {[%emt 0:00:00]} Ra7 {[%emt 0:00:00]} 24. Bd2 {[%emt 0:00:00]} Ra3 $1 {[%emt 0:00:00] Weighted Error Value: White=0.18 (very precise) /Black=0.12 (very precise)} 1/2-1/2